[Event "Senior Men Russian Championship 2022_HL"]
[Site "Saint-Petersburg, Russia"]
[Date "2022.09.28"]
[Round "5.1"]
[White "Ponfilenok, Vladimir"]
[Black "Ionov, Sergey"]
[Result "0-1"]
[TimeControl "40+30"]
[WhiteElo "2298"]
[BlackElo "2513"]

1. d4 {[%clk 01:30:57]} {[%emt 00:00:02]} Nf6 {[%clk 01:30:33]} {[%emt
00:00:27]} 2. c4 {[%clk 01:31:26]} {[%emt 00:00:02]} e6 {[%clk 01:30:53]}
{[%emt 00:00:10]} 3. g3 {[%clk 01:31:54]} {[%emt 00:00:02]} Bb4+ {[%clk
01:30:50]} {[%emt 00:00:32]} 4. Bd2 {[%clk 01:32:08]} {[%emt 00:00:16]} Be7
{[%clk 01:30:56]} {[%emt 00:00:24]} 5. Bg2 {[%clk 01:32:27]} {[%emt 00:00:11]}
d5 {[%clk 01:31:22]} {[%emt 00:00:04]} 6. Nf3 {[%clk 01:32:44]} {[%emt
00:00:13]} O-O {[%clk 01:31:46]} {[%emt 00:00:07]} 7. O-O {[%clk 01:33:08]}
{[%emt 00:00:05]} Nbd7 {[%clk 01:32:11]} {[%emt 00:00:05]} 8. Qc2 {[%clk
01:33:29]} {[%emt 00:00:09]} c6 {[%clk 01:32:31]} {[%emt 00:00:10]} 9. Bf4
{[%clk 01:33:37]} {[%emt 00:00:21]} a5 {[%clk 01:32:57]} {[%emt 00:00:05]} 10.
Rd1 {[%clk 01:25:51]} {[%emt 00:08:16]} a4 {[%clk 01:33:16]} {[%emt 00:00:12]}
11. Ne5 {[%clk 01:19:38]} {[%emt 00:06:41]} Qa5 {[%clk 01:33:10]} {[%emt
00:00:37]} 12. Nc3 {[%clk 01:17:11]} {[%emt 00:02:56]} Nxe5 {[%clk 01:24:29]}
{[%emt 00:09:11]} 13. dxe5 {[%clk 01:13:22]} {[%emt 00:04:21]} Nd7 {[%clk
01:23:50]} {[%emt 00:01:08]} 14. cxd5 {[%clk 01:13:33]} {[%emt 00:00:19]} exd5
{[%clk 01:24:01]} {[%emt 00:00:19]} 15. e4 {[%clk 00:59:44]} {[%emt 00:14:19]}
dxe4 {[%clk 01:23:41]} {[%emt 00:00:50]} 16. Qxe4 {[%clk 00:45:45]} {[%emt
00:14:29]} Nc5 {[%clk 01:18:45]} {[%emt 00:05:26]} 17. Qe3 {[%clk 00:39:16]}
{[%emt 00:06:59]} Bg4 {[%clk 01:08:31]} {[%emt 00:10:42]} 18. Bf3 {[%clk
00:39:42]} {[%emt 00:00:05]} Bxf3 {[%clk 01:05:43]} {[%emt 00:03:19]} 19. Qxf3
{[%clk 00:39:25]} {[%emt 00:00:46]} Qb4 {[%clk 01:06:03]} {[%emt 00:00:10]} 20.
Rab1 {[%clk 00:24:43]} {[%emt 00:15:13]} Rfd8 {[%clk 01:04:26]} {[%emt
00:02:06]} 21. a3 {[%clk 00:23:25]} {[%emt 00:01:50]} Qc4 {[%clk 00:59:46]}
{[%emt 00:05:08]} 22. h4 {[%clk 00:19:06]} {[%emt 00:04:50]} h6 {[%clk
00:54:36]} {[%emt 00:05:40]} 23. Rxd8+ {[%clk 00:10:02]} {[%emt 00:09:35]} Rxd8
{[%clk 00:55:00]} {[%emt 00:00:04]} 24. Rd1 {[%clk 00:10:30]} {[%emt 00:00:02]}
Rxd1+ {[%clk 00:50:21]} {[%emt 00:05:10]} 25. Nxd1 {[%clk 00:10:57]} {[%emt
00:00:03]} Ne6 {[%clk 00:40:23]} {[%emt 00:10:28]} 26. Be3 {[%clk 00:06:41]}
{[%emt 00:04:46]} Qb5 {[%clk 00:26:02]} {[%emt 00:14:50]} 27. Qg4 {[%clk
00:07:08]} {[%emt 00:00:03]} Kf8 {[%clk 00:24:39]} {[%emt 00:01:54]} 28. f4
{[%clk 00:05:42]} {[%emt 00:01:56]} Bc5 {[%clk 00:25:01]} {[%emt 00:00:08]} 29.
Bxc5+ {[%clk 00:04:56]} {[%emt 00:01:16]} Qxc5+ {[%clk 00:25:26]} {[%emt
00:00:05]} 30. Kf1 {[%clk 00:04:54]} {[%emt 00:00:29]} Qd4 {[%clk 00:22:53]}
{[%emt 00:03:06]} 31. Nc3 {[%clk 00:04:01]} {[%emt 00:01:23]} g6 {[%clk
00:20:06]} {[%emt 00:03:16]} 32. Qe2 {[%clk 00:03:38]} {[%emt 00:00:53]} Nc5
{[%clk 00:19:41]} {[%emt 00:00:56]} 33. Qd1 {[%clk 00:02:30]} {[%emt 00:01:36]}
Qxd1+ {[%clk 00:18:28]} {[%emt 00:01:44]} 34. Nxd1 {[%clk 00:02:59]} {[%emt
00:00:02]} Ke7 {[%clk 00:17:36]} {[%emt 00:01:22]} 35. Ke2 {[%clk 00:03:27]}
{[%emt 00:00:02]} Ke6 {[%clk 00:16:46]} {[%emt 00:01:20]} 36. Ne3 {[%clk
00:02:25]} {[%emt 00:01:31]} h5 {[%clk 00:17:04]} {[%emt 00:00:12]} 37. Kf3
{[%clk 00:01:49]} {[%emt 00:01:06]} b5 {[%clk 00:16:43]} {[%emt 00:00:51]} 38.
g4 {[%clk 00:01:43]} {[%emt 00:00:36]} hxg4+ {[%clk 00:13:20]} {[%emt
00:03:52]} 39. Kxg4 {[%clk 00:02:10]} {[%emt 00:00:03]} Nd3 {[%clk 00:13:25]}
{[%emt 00:00:25]} 40. Kg5 {[%clk 00:31:06]} {[%emt 00:01:35]} Nxb2 {[%clk
00:40:47]} {[%emt 00:03:08]} 41. f5+ {[%clk 00:31:16]} {[%emt 00:00:19]} Kxe5
{[%clk 00:31:48]} {[%emt 00:09:30]} 42. fxg6 {[%clk 00:31:13]} {[%emt
00:00:33]} fxg6 {[%clk 00:32:14]} {[%emt 00:00:04]} 43. Kxg6 {[%clk 00:30:58]}
{[%emt 00:00:45]} Nd3 {[%clk 00:30:46]} {[%emt 00:01:57]} 44. Ng2 {[%clk
00:29:59]} {[%emt 00:01:28]} Nf4+ {[%clk 00:29:09]} {[%emt 00:02:09]} 45. Nxf4
{[%clk 00:30:24]} {[%emt 00:00:05]} Kxf4 {[%clk 00:29:37]} {[%emt 00:00:02]} 46.
h5 {[%clk 00:30:46]} {[%emt 00:00:07]} b4 {[%clk 00:30:06]} {[%emt 00:00:02]}
47. h6 {[%clk 00:30:55]} {[%emt 00:00:20]} b3 {[%clk 00:30:34]} {[%emt
00:00:02]} 48. h7 {[%clk 00:29:56]} {[%emt 00:01:29]} b2 {[%clk 00:30:47]}
{[%emt 00:00:17]} 49. h8=Q {[%clk 00:30:22]} {[%emt 00:00:05]} b1=Q+ {[%clk
00:31:06]} {[%emt 00:00:10]} 50. Kf7 {[%clk 00:30:46]} {[%emt 00:00:06]} Qf5+
{[%clk 00:31:12]} {[%emt 00:00:24]} 0-1

[Event "Senior Men Russian Championship 2022_HL"]
[Site "Saint-Petersburg, Russia"]
[Date "2022.09.28"]
[Round "5.2"]
[White "Kozlov, Oleg"]
[Black "Provotorov, Alexandr P."]
[Result "1/2-1/2"]
[TimeControl "40+30"]
[WhiteElo "2279"]
[BlackElo "2277"]

1. d4 {[%clk 01:30:51]} {[%emt 00:00:08]} Nf6 {[%clk 01:30:44]} {[%emt
00:00:16]} 2. Nf3 {[%clk 01:31:05]} {[%emt 00:00:16]} g6 {[%clk 01:30:14]}
{[%emt 00:01:00]} 3. Bg5 {[%clk 01:24:18]} {[%emt 00:07:17]} Bg7 {[%clk
01:29:44]} {[%emt 00:00:59]} 4. Nbd2 {[%clk 01:24:45]} {[%emt 00:00:04]} O-O
{[%clk 01:27:23]} {[%emt 00:02:51]} 5. c3 {[%clk 01:24:16]} {[%emt 00:01:00]}
d6 {[%clk 01:27:24]} {[%emt 00:00:28]} 6. e4 {[%clk 01:22:18]} {[%emt
00:02:27]} Nbd7 {[%clk 01:22:00]} {[%emt 00:05:55]} 7. Bc4 {[%clk 01:21:14]}
{[%emt 00:01:34]} e5 {[%clk 01:21:43]} {[%emt 00:00:47]} 8. dxe5 {[%clk
01:21:08]} {[%emt 00:00:36]} dxe5 {[%clk 01:20:53]} {[%emt 00:01:20]} 9. h3
{[%clk 01:11:19]} {[%emt 00:10:19]} h6 {[%clk 01:04:20]} {[%emt 00:17:02]} 10.
Be3 {[%clk 01:11:14]} {[%emt 00:00:35]} Nh5 {[%clk 01:03:39]} {[%emt 00:01:12]}
11. g3 {[%clk 00:59:40]} {[%emt 00:12:04]} Qf6 {[%clk 00:57:34]} {[%emt
00:06:34]} 12. Ng1 {[%clk 00:35:46]} {[%emt 00:24:25]} Qe7 {[%clk 00:53:37]}
{[%emt 00:04:27]} 13. Ne2 {[%clk 00:35:54]} {[%emt 00:00:22]} Nhf6 {[%clk
00:52:02]} {[%emt 00:02:04]} 14. g4 {[%clk 00:31:56]} {[%emt 00:04:29]} Nc5
{[%clk 00:46:34]} {[%emt 00:05:58]} 15. Qc2 {[%clk 00:27:48]} {[%emt 00:04:38]}
c6 {[%clk 00:40:59]} {[%emt 00:06:05]} 16. Ng3 {[%clk 00:08:33]} {[%emt
00:19:45]} Ne6 {[%clk 00:40:02]} {[%emt 00:01:26]} 17. f3 {[%clk 00:06:30]}
{[%emt 00:02:34]} b5 {[%clk 00:39:07]} {[%emt 00:01:25]} 18. Bxe6 {[%clk
00:06:43]} {[%emt 00:00:18]} Bxe6 {[%clk 00:39:20]} {[%emt 00:00:15]} 19. b4
{[%clk 00:05:44]} {[%emt 00:01:30]} Rfd8 {[%clk 00:39:39]} {[%emt 00:00:11]} 20.
Nb3 {[%clk 00:03:36]} {[%emt 00:02:38]} Nd7 {[%clk 00:35:34]} {[%emt 00:04:34]}
21. Na5 {[%clk 00:02:38]} {[%emt 00:01:29]} Rdc8 {[%clk 00:35:56]} {[%emt
00:00:07]} 22. Qd2 {[%clk 00:01:44]} {[%emt 00:01:24]} c5 {[%clk 00:35:57]}
{[%emt 00:00:29]} 23. a3 {[%clk 00:01:46]} {[%emt 00:00:30]} cxb4 {[%clk
00:36:05]} {[%emt 00:00:21]} 24. axb4 {[%clk 00:01:52]} {[%emt 00:00:25]} Nb6
{[%clk 00:36:21]} {[%emt 00:00:13]} 25. Kf2 {[%clk 00:00:53]} {[%emt 00:01:29]}
Qh4 {[%clk 00:34:24]} {[%emt 00:02:26]} 26. Kg2 {[%clk 00:01:12]} {[%emt
00:00:12]} Rd8 {[%clk 00:34:47]} {[%emt 00:00:07]} 27. Qc1 {[%clk 00:00:51]}
{[%emt 00:00:51]} Rac8 {[%clk 00:34:47]} {[%emt 00:00:30]} 28. Nb7 {[%clk
00:00:48]} {[%emt 00:00:33]} Rd3 {[%clk 00:35:06]} {[%emt 00:00:11]} 29. Nc5
{[%clk 00:01:06]} {[%emt 00:00:12]} Rd6 {[%clk 00:34:47]} {[%emt 00:00:48]} 30.
Rd1 {[%clk 00:00:39]} {[%emt 00:00:58]} Rxd1 {[%clk 00:34:41]} {[%emt
00:00:36]} 31. Qxd1 {[%clk 00:01:08]} {[%emt 00:00:01]} Rd8 {[%clk 00:32:17]}
{[%emt 00:02:54]} 32. Qe1 {[%clk 00:01:25]} {[%emt 00:00:12]} Qe7 {[%clk
00:28:56]} {[%emt 00:03:50]} 33. h4 {[%clk 00:00:51]} {[%emt 00:01:05]} Bc8
{[%clk 00:28:03]} {[%emt 00:01:24]} 34. h5 {[%clk 00:01:07]} {[%emt 00:00:14]}
Nc4 {[%clk 00:28:16]} {[%emt 00:00:16]} 35. Ra2 {[%clk 00:00:36]} {[%emt
00:01:02]} Bf8 {[%clk 00:26:45]} {[%emt 00:02:01]} 36. Bf2 {[%clk 00:00:41]}
{[%emt 00:00:25]} Qc7 {[%clk 00:26:37]} {[%emt 00:00:38]} 37. Nb3 {[%clk
00:00:55]} {[%emt 00:00:16]} a6 {[%clk 00:26:43]} {[%emt 00:00:25]} 38. Qg1
{[%clk 00:00:35]} {[%emt 00:00:49]} Rd3 {[%clk 00:26:27]} {[%emt 00:00:45]} 39.
Qe1 {[%clk 00:00:45]} {[%emt 00:00:21]} Bxb4 {[%clk 00:26:00]} {[%emt
00:00:57]} 40. cxb4 {[%clk 00:30:58]} {[%emt 00:00:17]} Rxb3 {[%clk 00:56:25]}
{[%emt 00:00:05]} 41. Bc5 {[%clk 00:22:08]} {[%emt 00:09:20]} Rd3 {[%clk
00:55:32]} {[%emt 00:01:22]} 42. Qe2 {[%clk 00:12:40]} {[%emt 00:09:59]} Qd8
{[%clk 00:50:28]} {[%emt 00:05:33]} 43. hxg6 {[%clk 00:12:01]} {[%emt
00:01:09]} fxg6 {[%clk 00:50:51]} {[%emt 00:00:06]} 44. Nf1 {[%clk 00:12:21]}
{[%emt 00:00:11]} Rd7 {[%clk 00:46:24]} {[%emt 00:04:57]} 45. Ne3 {[%clk
00:11:31]} {[%emt 00:01:20]} Nxe3+ {[%clk 00:38:29]} {[%emt 00:08:24]} 46. Qd1
{[%emt 00:00:18]} 1/2-1/2

[Event "Senior Men Russian Championship 2022_HL"]
[Site "Saint-Petersburg, Russia"]
[Date "2022.09.28"]
[Round "5.3"]
[White "Loginov, Valery A"]
[Black "Dragomarezkij, Evgeni"]
[Result "1-0"]
[TimeControl "40+30"]
[WhiteElo "2478"]
[BlackElo "2297"]

1. e4 {[%clk 01:30:55]} {[%emt 00:00:04]} e5 {[%clk 01:30:49]} {[%emt
00:00:12]} 2. Nf3 {[%clk 01:31:17]} {[%emt 00:00:07]} Nf6 {[%clk 01:31:09]}
{[%emt 00:00:10]} 3. d4 {[%clk 01:31:31]} {[%emt 00:00:16]} Nxe4 {[%clk
01:31:31]} {[%emt 00:00:08]} 4. Bd3 {[%clk 01:31:51]} {[%emt 00:00:10]} Nc6
{[%clk 01:31:54]} {[%emt 00:00:08]} 5. O-O {[%clk 01:31:21]} {[%emt 00:00:59]}
d5 {[%clk 01:32:01]} {[%emt 00:00:23]} 6. dxe5 {[%clk 01:31:44]} {[%emt
00:00:07]} Be7 {[%clk 01:28:01]} {[%emt 00:04:29]} 7. Nc3 {[%clk 01:29:16]}
{[%emt 00:02:58]} Nxc3 {[%clk 01:27:56]} {[%emt 00:00:36]} 8. bxc3 {[%clk
01:29:39]} {[%emt 00:00:07]} Bg4 {[%clk 01:25:29]} {[%emt 00:02:57]} 9. Re1
{[%clk 01:29:48]} {[%emt 00:00:21]} Qd7 {[%clk 01:20:06]} {[%emt 00:05:52]} 10.
h3 {[%clk 01:27:27]} {[%emt 00:02:52]} Be6 {[%clk 01:16:20]} {[%emt 00:04:16]}
11. Rb1 {[%clk 01:23:57]} {[%emt 00:04:00]} Rb8 {[%clk 01:09:49]} {[%emt
00:07:00]} 12. Bg5 {[%clk 01:18:52]} {[%emt 00:05:35]} O-O {[%clk 01:05:02]}
{[%emt 00:05:17]} 13. Qd2 {[%clk 01:10:05]} {[%emt 00:09:17]} Rfe8 {[%clk
00:52:26]} {[%emt 00:13:06]} 14. Qf4 {[%clk 01:05:11]} {[%emt 00:05:24]} Bxg5
{[%clk 00:48:53]} {[%emt 00:04:04]} 15. Nxg5 {[%clk 01:03:38]} {[%emt
00:02:02]} h6 {[%clk 00:49:15]} {[%emt 00:00:09]} 16. Nh7 {[%clk 01:01:50]}
{[%emt 00:02:18]} Kh8 {[%clk 00:33:27]} {[%emt 00:16:18]} 17. Nf6 {[%clk
01:00:59]} {[%emt 00:01:21]} Qe7 {[%clk 00:33:49]} {[%emt 00:00:08]} 18. Nxe8
{[%clk 01:00:50]} {[%emt 00:00:38]} Qxe8 {[%clk 00:34:12]} {[%emt 00:00:08]} 19.
c4 {[%clk 00:59:07]} {[%emt 00:02:13]} Ne7 {[%clk 00:34:03]} {[%emt 00:00:38]}
20. cxd5 {[%clk 00:53:45]} {[%emt 00:05:52]} Bxd5 {[%clk 00:33:56]} {[%emt
00:00:38]} 21. e6 {[%clk 00:51:39]} {[%emt 00:02:36]} Bxe6 {[%clk 00:34:03]}
{[%emt 00:00:23]} 22. Qxc7 {[%clk 00:51:43]} {[%emt 00:00:26]} Nd5 {[%clk
00:34:04]} {[%emt 00:00:29]} 23. Qe5 {[%clk 00:51:10]} {[%emt 00:01:03]} Qc8
{[%clk 00:33:44]} {[%emt 00:00:51]} 24. Bc4 {[%clk 00:49:46]} {[%emt 00:01:54]}
Nc7 {[%clk 00:33:49]} {[%emt 00:00:25]} 25. Bb3 {[%clk 00:49:07]} {[%emt
00:01:08]} b6 {[%clk 00:34:00]} {[%emt 00:00:20]} 26. Re3 {[%clk 00:46:22]}
{[%emt 00:03:14]} Rb7 {[%clk 00:33:16]} {[%emt 00:01:15]} 27. Rg3 {[%clk
00:45:05]} {[%emt 00:01:45]} Qf8 {[%clk 00:32:28]} {[%emt 00:01:20]} 28. Rd1
{[%clk 00:44:58]} {[%emt 00:00:35]} f6 {[%clk 00:32:48]} {[%emt 00:00:11]} 29.
Qd6 {[%clk 00:43:50]} {[%emt 00:01:38]} Qxd6 {[%clk 00:32:40]} {[%emt
00:00:39]} 30. Rxd6 {[%clk 00:44:12]} {[%emt 00:00:06]} Bxb3 {[%clk 00:33:01]}
{[%emt 00:00:10]} 31. cxb3 {[%clk 00:44:04]} {[%emt 00:00:38]} Na6 {[%clk
00:33:24]} {[%emt 00:00:07]} 32. a3 {[%clk 00:42:00]} {[%emt 00:02:34]} Nc5
{[%clk 00:33:38]} {[%emt 00:00:16]} 33. Re3 {[%clk 00:38:17]} {[%emt 00:04:12]}
a5 {[%clk 00:33:45]} {[%emt 00:00:25]} 34. g4 {[%clk 00:35:13]} {[%emt
00:03:33]} Kg8 {[%clk 00:33:18]} {[%emt 00:00:57]} 35. b4 {[%clk 00:28:47]}
{[%emt 00:06:56]} axb4 {[%clk 00:33:33]} {[%emt 00:00:15]} 36. axb4 {[%clk
00:29:12]} {[%emt 00:00:06]} Na4 {[%clk 00:33:37]} {[%emt 00:00:25]} 37. Red3
{[%clk 00:27:17]} {[%emt 00:02:24]} Rc7 {[%clk 00:32:19]} {[%emt 00:01:49]} 38.
Rd8+ {[%clk 00:27:14]} {[%emt 00:00:32]} Kh7 {[%clk 00:32:44]} {[%emt
00:00:06]} 39. R3d7 {[%clk 00:27:15]} {[%emt 00:00:28]} Rc1+ {[%clk 00:32:33]}
{[%emt 00:00:42]} 40. Kg2 {[%clk 00:57:35]} {[%emt 00:00:09]} 1-0

[Event "Senior Men Russian Championship 2022_HL"]
[Site "Saint-Petersburg, Russia"]
[Date "2022.09.28"]
[Round "5.4"]
[White "Kalegin, Evgenij"]
[Black "Balashov, Yuri S"]
[Result "1/2-1/2"]
[TimeControl "40+30"]
[WhiteElo "2386"]
[BlackElo "2395"]

1. e4 {[%clk 01:30:57]} {[%emt 00:00:02]} e5 {[%clk 01:30:54]} {[%emt
00:00:06]} 2. Nf3 {[%clk 01:31:23]} {[%emt 00:00:04]} Nc6 {[%clk 01:31:19]}
{[%emt 00:00:06]} 3. Bb5 {[%clk 01:31:46]} {[%emt 00:00:07]} a6 {[%clk
01:31:41]} {[%emt 00:00:08]} 4. Ba4 {[%clk 01:32:11]} {[%emt 00:00:05]} Nf6
{[%clk 01:32:05]} {[%emt 00:00:05]} 5. O-O {[%clk 01:32:34]} {[%emt 00:00:07]}
Be7 {[%clk 01:32:26]} {[%emt 00:00:08]} 6. Re1 {[%clk 01:32:58]} {[%emt
00:00:07]} b5 {[%clk 01:32:49]} {[%emt 00:00:08]} 7. Bb3 {[%clk 01:33:23]}
{[%emt 00:00:06]} d6 {[%clk 01:33:10]} {[%emt 00:00:09]} 8. c3 {[%clk
01:33:47]} {[%emt 00:00:06]} O-O {[%clk 01:33:33]} {[%emt 00:00:07]} 9. h3
{[%clk 01:34:12]} {[%emt 00:00:04]} Re8 {[%clk 01:33:49]} {[%emt 00:00:13]} 10.
Ng5 {[%clk 01:34:29]} {[%emt 00:00:14]} Rf8 {[%clk 01:34:13]} {[%emt 00:00:06]}
11. Nf3 {[%clk 01:34:54]} {[%emt 00:00:04]} Bb7 {[%clk 01:34:35]} {[%emt
00:00:08]} 12. d4 {[%clk 01:35:18]} {[%emt 00:00:07]} Re8 {[%clk 01:34:57]}
{[%emt 00:00:07]} 13. Ng5 {[%clk 01:35:43]} {[%emt 00:00:06]} Rf8 {[%clk
01:35:23]} {[%emt 00:00:04]} 14. Nf3 {[%clk 01:36:08]} {[%emt 00:00:05]} Re8
{[%clk 01:33:59]} {[%emt 00:00:05]} 1/2-1/2

[Event "Senior Men Russian Championship 2022_HL"]
[Site "Saint-Petersburg, Russia"]
[Date "2022.09.28"]
[Round "5.5"]
[White "Raetsky, Alexander"]
[Black "Pozin, Sergey"]
[Result "0-1"]
[TimeControl "40+30"]
[WhiteElo "2384"]
[BlackElo "2257"]

1. d4 {[%clk 01:30:57]} {[%emt 00:00:03]} Nf6 {[%clk 01:30:07]} {[%emt
00:00:54]} 2. c4 {[%clk 01:30:50]} {[%emt 00:00:36]} g6 {[%clk 01:29:34]}
{[%emt 00:01:04]} 3. Nc3 {[%clk 01:31:04]} {[%emt 00:00:16]} Bg7 {[%clk
01:29:38]} {[%emt 00:00:26]} 4. e4 {[%clk 01:31:23]} {[%emt 00:00:11]} O-O
{[%clk 01:29:52]} {[%emt 00:00:16]} 5. Be2 {[%clk 01:31:15]} {[%emt 00:00:38]}
d6 {[%clk 01:29:51]} {[%emt 00:00:31]} 6. Bg5 {[%clk 01:31:34]} {[%emt
00:00:10]} c5 {[%clk 01:23:32]} {[%emt 00:06:50]} 7. d5 {[%clk 01:31:46]}
{[%emt 00:00:18]} e6 {[%clk 01:23:48]} {[%emt 00:00:15]} 8. Qd2 {[%clk
01:30:37]} {[%emt 00:01:38]} exd5 {[%clk 01:21:56]} {[%emt 00:02:23]} 9. exd5
{[%clk 01:30:44]} {[%emt 00:00:22]} Qb6 {[%clk 01:21:30]} {[%emt 00:00:56]} 10.
h3 {[%clk 01:18:06]} {[%emt 00:13:08]} Re8 {[%clk 01:15:10]} {[%emt 00:06:51]}
11. Nf3 {[%clk 01:17:45]} {[%emt 00:00:50]} Bf5 {[%clk 01:11:22]} {[%emt
00:04:18]} 12. Nh4 {[%clk 01:07:43]} {[%emt 00:10:31]} Ne4 {[%clk 01:04:58]}
{[%emt 00:06:55]} 13. Nxe4 {[%clk 01:08:00]} {[%emt 00:00:14]} Bxe4 {[%clk
01:05:24]} {[%emt 00:00:04]} 14. f3 {[%clk 01:07:28]} {[%emt 00:01:01]} Qxb2
{[%clk 01:00:58]} {[%emt 00:04:57]} 15. Rc1 {[%clk 01:06:44]} {[%emt 00:01:13]}
h6 {[%clk 00:55:40]} {[%emt 00:05:48]} 16. Be3 {[%clk 01:01:55]} {[%emt
00:05:18]} Qf6 {[%clk 00:45:39]} {[%emt 00:10:32]} 17. g3 {[%clk 00:59:55]}
{[%emt 00:02:30]} g5 {[%clk 00:43:46]} {[%emt 00:02:23]} 18. Ng2 {[%clk
00:57:00]} {[%emt 00:03:24]} Bg6 {[%clk 00:40:18]} {[%emt 00:03:58]} 19. O-O
{[%clk 00:26:50]} {[%emt 00:30:40]} Nd7 {[%clk 00:37:29]} {[%emt 00:03:20]} 20.
Kh2 {[%clk 00:26:57]} {[%emt 00:00:22]} Qb2 {[%clk 00:37:13]} {[%emt 00:00:46]}
21. Qd1 {[%clk 00:05:27]} {[%emt 00:22:01]} Bd4 {[%clk 00:33:53]} {[%emt
00:03:49]} 22. Bd2 {[%clk 00:04:07]} {[%emt 00:01:51]} Re7 {[%clk 00:15:32]}
{[%emt 00:18:51]} 23. f4 {[%clk 00:04:21]} {[%emt 00:00:16]} Rae8 {[%clk
00:15:21]} {[%emt 00:00:41]} 24. Bg4 {[%clk 00:03:38]} {[%emt 00:01:13]} Be4
{[%clk 00:14:25]} {[%emt 00:01:26]} 25. Re1 {[%clk 00:01:06]} {[%emt 00:03:02]}
Nf6 {[%clk 00:13:30]} {[%emt 00:01:25]} 26. Re2 {[%clk 00:00:57]} {[%emt
00:00:39]} Bd3 {[%clk 00:10:02]} {[%emt 00:03:58]} 27. Rxe7 {[%clk 00:00:54]}
{[%emt 00:00:34]} Rxe7 {[%clk 00:10:27]} {[%emt 00:00:04]} 28. fxg5 {[%clk
00:00:33]} {[%emt 00:00:51]} Nxg4+ {[%clk 00:09:31]} {[%emt 00:01:26]} 29. Qxg4
{[%clk 00:00:35]} {[%emt 00:00:28]} Qxd2 {[%clk 00:09:10]} {[%emt 00:00:51]} 30.
gxh6+ {[%clk 00:01:01]} {[%emt 00:00:04]} Kh7 {[%clk 00:08:34]} {[%emt
00:01:05]} 31. Rd1 {[%clk 00:01:23]} {[%emt 00:00:09]} Qf2 {[%clk 00:07:31]}
{[%emt 00:01:32]} 0-1

[Event "Senior Men Russian Championship 2022_HL"]
[Site "Saint-Petersburg, Russia"]
[Date "2022.09.28"]
[Round "5.6"]
[White "Mishuchkov, Nikolai M."]
[Black "Zhelnin, Vladimir V"]
[Result "1/2-1/2"]
[TimeControl "40+30"]
[WhiteElo "2258"]
[BlackElo "2344"]

1. d4 {[%clk 01:30:53]} {[%emt 00:00:06]} Nf6 {[%clk 01:30:02]} {[%emt
00:00:59]} 2. Nf3 {[%clk 01:30:47]} {[%emt 00:00:35]} g6 {[%clk 01:28:36]}
{[%emt 00:01:56]} 3. g3 {[%clk 01:30:46]} {[%emt 00:00:31]} Bg7 {[%clk
01:28:40]} {[%emt 00:00:25]} 4. Bg2 {[%clk 01:31:09]} {[%emt 00:00:07]} O-O
{[%clk 01:28:41]} {[%emt 00:00:28]} 5. O-O {[%clk 01:31:34]} {[%emt 00:00:07]}
d6 {[%clk 01:28:31]} {[%emt 00:00:39]} 6. b3 {[%clk 01:27:57]} {[%emt
00:04:07]} Nc6 {[%clk 01:16:45]} {[%emt 00:12:16]} 7. Bb2 {[%clk 01:26:35]}
{[%emt 00:01:52]} e5 {[%clk 01:14:54]} {[%emt 00:02:20]} 8. dxe5 {[%clk
01:26:38]} {[%emt 00:00:28]} Ng4 {[%clk 01:10:04]} {[%emt 00:05:18]} 9. Qd2
{[%clk 01:26:30]} {[%emt 00:00:40]} Ngxe5 {[%clk 01:09:33]} {[%emt 00:01:01]}
10. c4 {[%clk 01:25:29]} {[%emt 00:01:31]} Bg4 {[%clk 01:02:57]} {[%emt
00:07:05]} 11. Nd4 {[%clk 01:11:49]} {[%emt 00:14:11]} Nxd4 {[%clk 00:41:35]}
{[%emt 00:21:52]} 12. Bxd4 {[%clk 01:11:52]} {[%emt 00:00:27]} c5 {[%clk
00:35:20]} {[%emt 00:06:46]} 13. Bb2 {[%clk 01:11:25]} {[%emt 00:00:57]} Qd7
{[%clk 00:31:26]} {[%emt 00:04:24]} 14. f4 {[%clk 01:05:15]} {[%emt 00:06:39]}
Nc6 {[%clk 00:31:08]} {[%emt 00:00:50]} 15. Bxg7 {[%clk 01:05:35]} {[%emt
00:00:09]} Kxg7 {[%clk 00:31:22]} {[%emt 00:00:16]} 16. Nc3 {[%clk 01:05:52]}
{[%emt 00:00:13]} Rae8 {[%clk 00:28:45]} {[%emt 00:03:08]} 17. Rf2 {[%clk
00:58:25]} {[%emt 00:07:56]} f6 {[%clk 00:23:29]} {[%emt 00:05:46]} 18. Ne4
{[%clk 00:49:01]} {[%emt 00:09:54]} Rd8 {[%clk 00:21:37]} {[%emt 00:02:22]} 19.
Re1 {[%clk 00:45:17]} {[%emt 00:04:13]} h5 {[%clk 00:20:10]} {[%emt 00:01:58]}
20. h4 {[%clk 00:42:46]} {[%emt 00:03:01]} Nd4 {[%clk 00:17:50]} {[%emt
00:02:51]} 21. e3 {[%clk 00:36:07]} {[%emt 00:07:08]} Nf5 {[%clk 00:18:00]}
{[%emt 00:00:20]} 22. Qc3 {[%clk 00:36:22]} {[%emt 00:00:15]} Qe7 {[%clk
00:15:34]} {[%emt 00:02:56]} 23. Rd2 {[%clk 00:36:02]} {[%emt 00:00:50]} b6
{[%clk 00:15:54]} {[%emt 00:00:11]} 24. Kf2 {[%clk 00:34:39]} {[%emt 00:01:51]}
Nh6 {[%clk 00:15:24]} {[%emt 00:01:01]} 25. Kg1 {[%clk 00:34:52]} {[%emt
00:00:17]} Nf5 {[%clk 00:15:46]} {[%emt 00:00:08]} 26. Nf2 {[%clk 00:32:51]}
{[%emt 00:01:28]} 1/2-1/2